bitfinex/quotes_ETHUSD_20251125
["timestamp","ask_amount","ask_price","bid_price","bid_amount"]
[1764109718113,0.6992,2932.0,2931.9,0.72559411]
[1764109718335,0.965,2932.0,2931.9,3.41075752]
[1764109719037,0.965,2932.0,2931.8,3.41082141]
[1764109719198,0.662,2931.9,2931.8,3.41082141]
[1764109719400,0.217,2932.1,2931.9,0.9765]
[1764109719712,0.217,2932.1,2931.9,0.4877]
[1764109720312,0.217,2932.1,2932.0,3.4106412]
[1764109721522,0.217,2932.1,2932.0,3.8983412]
[1764109722895,0.4811,2932.5,2932.0,7.3089824]
[1764109723095,0.217,2932.1,2932.0,3.8983412]
[1764109723708,0.217,2932.1,2932.0,3.4106412]
[1764109724330,0.4999,2932.1,2932.0,3.4106412]
[1764109724633,0.4999,2932.1,2931.8,6.82174772]
[1764109725405,0.4999,2932.1,2931.8,7.31054772]
[1764109725827,0.217,2932.1,2931.8,7.31054772]
[1764109726033,0.217,2932.1,2932.0,0.4877]
[1764109726437,0.217,2932.1,2931.8,7.31054772]
[1764109727837,0.217,2932.1,2932.0,0.4877]
[1764109728141,0.217,2932.1,2932.0,3.8983412]
[1764109729432,0.4999,2932.1,2932.0,3.4106412]
[1764109730653,0.4999,2932.1,2931.9,6.82150147]
[1764109731032,0.217,2932.1,2932.0,0.4554]
[1764109732151,0.4778,2932.5,2932.0,0.4554]
[1764109732348,0.217,2932.2,2932.0,0.4554]
[1764109732557,0.2862,2932.1,2931.9,6.82150147]
[1764109732844,0.217,2932.2,2931.9,6.82150147]
[1764109735735,0.002,2932.1,2931.9,7.29230147]
[1764109735941,0.002,2932.1,2932.0,0.4554]
[1764109736567,0.002,2932.1,2932.0,0.9262]
[1764109737043,0.002,2932.1,2932.0,4.60630738]
[1764109737247,0.002,2932.1,2932.0,4.13550738]
[1764109737454,0.002,2932.1,2932.0,8.01694858]
[1764109742129,0.002,2932.1,2932.0,8.74254269]
[1764109742332,0.002,2932.1,2932.0,8.83690269]
[1764109742537,0.002,2932.4,2932.0,8.83690269]
[1764109742538,0.002,2932.4,2932.0,19.55529247]
[1764109742745,0.002,2932.4,2932.3,4.43546738]
[1764109743066,0.002,2932.5,2932.4,0.81995411]
[1764109743268,0.002,2932.7,2932.6,0.09436]
[1764109743561,0.002,2932.7,2932.6,4.96666149]
[1764109743865,0.002,2932.7,2932.6,5.42176149]
[1764109744242,0.002,2934.0,2932.7,5.00752523]
[1764109744475,0.002,2934.0,2932.9,8.64676887]
[1764109744668,0.002,2934.0,2932.8,0.6721]
[1764109744669,0.002,2934.0,2933.3,0.72559411]
[1764109744976,0.002,2934.0,2933.7,0.72559411]
[1764109746347,0.002,2934.0,2933.8,6.81709726]
[1764109746549,0.002,2934.0,2933.2,0.54796887]
[1764109746550,0.1921,2933.8,2932.5,3.41005967]
[1764109746744,0.1921,2933.8,2933.2,3.68010738]
[1764109746745,0.217,2933.7,2933.2,3.68010738]
[1764109746954,0.7128,2933.7,2933.3,0.72559411]
[1764109747151,0.4958,2933.6,2933.3,0.72559411]
[1764109747577,0.2646,2933.4,2932.9,0.72559411]
[1764109747744,0.4958,2933.6,2932.9,0.72559411]
[1764109747943,0.4762,2933.0,2932.8,3.68010738]
[1764109748162,0.4762,2933.0,2932.9,0.72559411]
[1764109748391,0.405504,2933.7,2932.9,4.1351887]
[1764109748539,0.7604,2933.0,2932.9,4.1351887]
[1764109748969,0.2646,2933.0,2932.9,4.1351887]
[1764109749768,0.2646,2933.0,2932.9,3.40959459]
[1764109751771,0.7105,2933.2,2932.9,7.28578918]
[1764109751772,0.217,2933.2,2932.9,7.28578918]
[1764109751949,0.217,2933.2,2933.0,3.68010738]
[1764109752145,0.217,2933.2,2932.9,7.28578918]
[1764109752146,0.4958,2933.4,2932.9,7.28578918]
[1764109752346,0.217,2933.4,2933.0,3.68010738]
[1764109752543,0.217,2933.4,2933.3,0.4666]
[1764109752749,0.217,2933.4,2933.3,3.40912964]
[1764109753051,0.2646,2933.4,2933.3,3.40912964]
[1764109753249,0.7581,2933.4,2932.9,3.40959459]
[1764109753448,0.4935,2933.4,2932.9,3.41059459]
[1764109753659,0.2669,2933.0,2932.9,3.41059459]
[1764109754652,0.2669,2933.0,2932.9,0.001]
[1764109755375,0.217,2933.5,2932.9,0.001]
[1764109755376,0.217,2933.5,2932.9,4.60280738]
[1764109755570,0.217,2933.4,2933.1,3.68010738]
[1764109755764,0.217,2933.5,2933.1,3.68010738]
[1764109756164,0.7128,2933.5,2933.1,3.68010738]
[1764109757182,0.7128,2933.5,2933.2,6.81849174]
[1764109758074,0.2646,2933.3,2933.2,3.40924587]
[1764109759480,0.2646,2933.3,2933.0,3.40947834]
[1764109759788,0.2669,2933.0,2932.9,3.41053119]
[1764109759991,0.4935,2933.3,2932.9,6.82012578]
[1764109761384,0.2669,2933.0,2932.9,0.001]
[1764109762683,0.4935,2933.3,2932.9,0.001]
[1764109763991,0.4935,2933.3,2932.9,3.68110738]
[1764109764768,0.1921,2933.8,2933.2,4.32290738]
[1764109764996,0.217,2933.7,2933.4,4.14270738]
[1764109765776,0.4569,2933.6,2933.5,3.40889722]
[1764109766173,0.758,2933.6,2933.5,3.40889722]
[1764109766706,0.6494,2933.9,2933.5,3.40889722]
[1764109767003,0.217,2933.6,2933.5,3.40889722]
[1764109767370,0.217,2933.6,2933.5,3.87149722]
[1764109767701,0.6494,2933.9,2933.5,7.28039444]
[1764109767887,0.217,2933.7,2933.5,7.28039444]
[1764109768710,0.217,2933.7,2933.6,4.14270738]
[1764109769208,0.002,2934.0,2933.6,4.14270738]
[1764109769389,0.217,2933.8,2933.6,4.14270738]
[1764109769699,0.217,2933.8,2933.6,0.4626]
[1764109769917,0.217,2933.8,2933.7,3.87126482]
[1764109770083,0.002,2934.0,2933.7,7.27992964]
[1764109770286,0.002,2934.0,2933.9,0.4626]
[1764109770672,0.7585,2934.0,2933.7,6.81732964]
[1764109770893,0.4574,2934.0,2933.7,6.81732964]
[1764109771095,0.3027,2933.8,2933.7,3.40866482]
[1764109771307,0.4574,2934.0,2933.7,6.81732964]
[1764109772105,0.4574,2934.0,2933.5,6.81779444]
[1764109772309,0.002,2934.0,2933.6,3.68010738]
[1764109772607,0.002,2934.0,2933.6,4.14340738]
[1764109773674,0.4589,2934.0,2933.7,6.81732964]
[1764109773873,0.194,2933.9,2933.7,3.40866482]
[1764109774195,0.3011,2933.8,2933.7,3.40866482]
[1764109775114,0.7565,2933.8,2933.7,3.40866482]
[1764109775417,0.7565,2933.8,2933.6,3.40874492]
[1764109775602,0.4569,2933.7,2933.6,3.40874492]
[1764109775789,0.758,2933.7,2933.4,0.72559411]
[1764109775993,0.003,2933.6,2933.4,0.72559411]
[1764109778906,0.2981,2933.5,2933.4,0.72559411]
[1764109779109,0.194,2933.9,2933.4,0.72559411]
[1764109779110,0.194,2933.9,2933.6,0.4626]
[1764109779708,0.3011,2933.7,2933.5,10.49790182]
[1764109781215,0.002,2934.0,2933.6,0.9259]
[1764109781407,0.002,2934.0,2933.9,4.14270738]
[1764109783221,0.002,2934.0,2933.9,8.01443984]
[1764109783425,0.002,2934.0,2933.9,8.74003395]
[1764109785225,0.002,2934.0,2933.9,12.42014133]
[1764109785440,0.002,2934.0,2933.9,8.74003395]
[1764109785803,0.002,2934.0,2933.9,12.42014133]
[1764109786120,0.002,2934.0,2933.9,12.51450133]
[1764109790126,0.002,2934.0,2933.9,12.65103804]
[1764109790622,0.002,2934.0,2933.9,8.96355281]
[1764109793349,0.002,2934.0,2933.9,8.86919281]
[1764109795611,0.002,2934.0,2933.9,8.96355281]
[1764109798811,0.002,2934.3,2934.0,0.72559411]
[1764109799141,0.002,2934.3,2934.2,5.17458364]
[1764109799611,0.002,2934.3,2934.2,9.07536761]
[1764109799808,0.002,2934.3,2934.2,8.62482661]
[1764109800034,0.002,2934.3,2934.2,9.11752661]
[1764109801143,0.002,2934.3,2934.2,8.62482661]
[1764109801440,0.002,2934.3,2934.2,9.09122661]
[1764109801617,0.002,2934.3,2934.2,9.18558661]
[1764109801811,0.002,2934.3,2934.2,9.09122661]
[1764109802132,0.002,2934.3,2934.2,9.18558661]
[1764109802740,0.002,2934.3,2934.2,9.09122661]
[1764109802943,0.4632,2934.3,2934.2,4.13367808]
[1764109803139,0.7307,2934.3,2934.2,4.13367808]
[1764109803344,0.4632,2934.3,2934.2,4.13367808]
[1764109803850,0.7307,2934.3,2934.2,4.13367808]
[1764109804218,0.4632,2934.3,2934.2,4.13367808]
[1764109805148,0.002,2934.3,2934.2,4.62827808]
[1764109805752,0.002,2934.3,2934.2,5.09467808]
[1764109806749,0.002,2934.3,2934.2,5.18903808]
[1764109809156,0.1814,2936.2,2935.4,0.09436]
[1764109809363,0.1814,2936.2,2936.1,3.67272953]
[1764109809857,0.1814,2936.8,2936.1,4.82342953]
[1764109810069,0.1546,2936.2,2936.1,4.13147265]
[1764109810251,0.6737,2936.8,2936.1,6.81175708]
[1764109810451,0.4923,2936.7,2936.1,6.81175708]
[1764109810657,0.1546,2936.2,2936.1,4.13147265]
[1764109811250,0.1814,2936.8,2936.1,11.21008072]
[1764109811251,0.6737,2936.8,2936.1,11.21008072]
[1764109811446,0.4923,2936.7,2936.1,11.21008072]
[1764109811635,0.4923,2936.7,2936.4,3.67272953]
[1764109812165,0.1546,2936.5,2936.4,7.07826011]
[1764109813346,0.6435,2936.5,2936.4,3.40553058]
[1764109813566,0.6435,2936.5,2936.0,0.72559411]
[1764109813783,0.6435,2936.5,2935.9,3.40604142]
[1764109813784,0.1546,2936.0,2935.9,3.40604142]
[1764109813938,0.1546,2936.0,2935.9,4.13163553]
[1764109814140,0.6435,2936.0,2935.2,6.81384572]
[1764109814457,0.3327,2935.3,2934.9,3.40725011]
[1764109814659,0.4612,2935.0,2934.9,3.40725011]
[1764109815642,0.4612,2935.0,2934.9,4.13284422]
[1764109815844,0.365,2935.2,2934.9,11.21284486]
[1764109816186,0.1814,2935.6,2935.2,3.40692286]
[1764109816476,0.1814,2935.6,2935.1,3.40700189]
[1764109816477,0.4612,2935.3,2935.1,3.40700189]
[1764109816684,0.1854,2935.2,2935.1,3.40700189]
[1764109817175,0.6439,2935.2,2935.1,3.40700189]
[1764109817383,0.1854,2935.2,2935.1,3.40700189]
[1764109817897,0.6439,2935.2,2935.1,3.40700189]
[1764109818368,0.6439,2935.2,2935.0,0.72559411]
[1764109818571,0.6469,2935.1,2934.9,6.81454222]
[1764109818773,0.0015,2935.0,2934.9,4.13286522]
[1764109818968,0.4938,2935.0,2934.9,4.13286522]
[1764109819787,0.4938,2935.0,2934.9,0.72559411]
[1764109819990,0.4938,2935.0,2934.8,3.40732958]
[1764109820176,0.3345,2934.9,2934.8,3.40732958]
[1764109820522,0.3345,2934.9,2934.4,3.40781566]
[1764109820523,0.3345,2934.9,2934.5,0.72559411]
[1764109820801,0.6652,2934.9,2934.5,0.72559411]
[1764109821334,0.1814,2934.9,2934.5,0.72559411]
[1764109821474,0.4858,2934.6,2934.4,0.72559411]
[1764109821791,0.1611,2934.8,2934.4,0.72559411]
[1764109821962,0.1814,2934.9,2934.4,0.72559411]
[1764109822162,0.6652,2934.9,2934.4,0.72559411]
[1764109822362,0.6652,2934.9,2934.5,6.8154711]
[1764109822569,0.1611,2934.8,2934.5,6.8154711]
[1764109822775,0.4825,2934.6,2934.5,3.40773555]
[1764109823170,0.1814,2934.9,2934.5,7.2973711]
[1764109823404,0.002,2935.2,2934.5,10.22320665]
[1764109823574,0.4858,2935.2,2934.5,6.8154711]
[1764109824005,0.002,2935.2,2934.6,1.22179411]
[1764109824500,0.002,2935.2,2934.7,10.22250996]
[1764109824808,0.4838,2935.1,2934.7,6.81500664]
[1764109825319,0.3443,2934.8,2934.3,0.72559411]
[1764109825710,0.3443,2934.8,2934.3,1.22179411]
[1764109826500,0.3443,2934.8,2934.5,0.72559411]
[1764109826718,0.164,2934.8,2934.5,0.72559411]
[1764109826900,0.4838,2935.1,2934.5,0.72559411]
[1764109828720,0.4838,2935.1,2934.6,6.81523886]
[1764109829096,0.0996,2934.6,2934.5,4.13332966]
[1764109829423,0.3437,2934.6,2934.5,4.13332966]
[1764109829812,0.8251,2934.6,2934.5,3.40773555]
[1764109831326,0.8251,2934.6,2934.2,7.54176205]
[1764109831493,0.581,2934.6,2934.2,7.54176205]
[1764109831915,0.2465,2934.3,2934.2,4.13367808]
[1764109832835,0.7255,2934.3,2934.2,4.13367808]
[1764109833726,0.7255,2934.3,2934.0,0.001]
[1764109833929,0.2441,2934.1,2934.0,0.001]
[1764109834424,0.7255,2934.1,2934.0,0.001]
[1764109835219,1.131004,2934.1,2934.0,0.001]
[1764109835424,4.53920412,2934.1,2934.0,0.001]
[1764109838343,1.362404,2932.4,2932.3,0.001]
[1764109839042,3.40868046,2933.7,2932.3,0.4829]
[1764109839243,0.1805,2933.1,2932.3,0.001]
[1764109839452,0.217,2933.0,2932.3,0.001]
[1764109839613,0.4838,2932.9,2932.3,0.001]
[1764109840729,0.1805,2933.1,2932.3,0.001]
[1764109840938,0.217,2933.0,2932.3,0.4972]
[1764109841264,0.217,2933.0,2932.3,0.001]
[1764109841557,0.217,2933.0,2932.3,10.23187678]
[1764109841950,0.217,2933.0,2932.3,10.72807678]
[1764109842160,0.1805,2933.4,2932.9,0.4819]
[1764109842330,0.217,2933.3,2933.0,0.4819]
[1764109842527,0.002,2933.5,2933.0,0.4819]
[1764109842738,0.219,2933.5,2933.2,0.6656]
[1764109842961,0.002,2933.5,2933.4,0.4819]
[1764109843645,0.002,2933.5,2933.4,3.89091343]
[1764109844036,0.002,2933.5,2933.4,5.11270754]
[1764109844761,0.002,2933.5,2933.4,5.20706754]
[1764109845561,0.002,2933.8,2933.7,3.50302482]
[1764109845751,0.002,2933.8,2933.7,4.48112482]
[1764109846162,0.002,2933.8,2933.7,4.61766572]
[1764109846357,0.002,2933.8,2933.7,4.48112482]
[1764109846763,0.002,2933.8,2933.7,5.20671893]
[1764109847274,0.002,2934.1,2934.0,0.09436]
[1764109847451,0.002,2934.1,2934.0,5.56998052]
[1764109847669,0.002,2934.1,2934.0,9.47449681]
[1764109849273,0.002,2934.1,2934.0,10.20009092]
[1764109850671,0.002,2934.1,2934.0,9.98066975]
[1764109850859,0.002,2934.1,2934.0,9.88630975]
[1764109853780,0.002,2935.2,2934.1,1.13109811]
[1764109853964,0.002,2935.2,2934.9,0.72559411]
[1764109854270,0.002,2935.2,2935.1,0.6533]
[1764109854862,0.002,2935.2,2934.9,0.72559411]
[1764109855847,0.002,2935.2,2935.1,0.72559411]
[1764109857574,0.4935,2935.2,2935.1,0.72559411]
[1764109858283,0.7351,2935.2,2934.6,0.72559411]
[1764109858473,0.4734,2935.1,2934.5,10.22320665]
[1764109858670,0.4734,2935.1,2934.6,0.72559411]
[1764109859358,0.2595,2934.7,2934.6,0.72559411]
[1764109859557,0.4451,2934.7,2934.6,0.72559411]
[1764109860084,0.2595,2934.7,2934.6,4.13321354]
[1764109860985,0.002,2935.2,2934.6,7.99913297]
[1764109861493,0.4637,2935.2,2934.6,7.99913297]
[1764109863390,0.4568,2934.7,2934.6,4.13321354]
[1764109863565,0.4568,2934.7,2934.1,0.1832]
[1764109863771,0.258,2934.7,2934.1,0.6632]
[1764109864483,0.258,2934.7,2934.2,6.81616794]
[1764109865082,0.7177,2934.7,2934.2,6.81616794]
[1764109868383,0.002,2935.2,2934.6,0.4583]
[1764109868571,0.002,2935.2,2934.9,3.40727111]
[1764109868776,0.002,2935.2,2934.9,6.81454222]
[1764109869275,0.258,2935.0,2934.9,3.40727111]
[1764109869677,0.7177,2935.0,2934.8,3.40733743]
[1764109869865,0.1988,2934.9,2934.8,3.40733743]
[1764109870171,0.4568,2934.9,2934.8,3.40733743]
[1764109870583,0.4568,2934.9,2934.5,0.72559411]
[1764109871768,0.4568,2934.9,2934.6,6.81523886]
[1764109871962,0.9165,2934.9,2934.6,6.81523886]
[1764109872598,0.6585,2934.9,2934.6,6.81523886]
[1764109872770,0.26,2934.7,2934.6,3.40761943]
[1764109876497,0.7177,2934.7,2934.6,3.40761943]
[1764109876801,0.7197,2934.7,2934.6,3.40761943]
[1764109877590,0.7197,2934.7,2934.0,3.40929035]
[1764109877795,0.4637,2934.7,2934.2,0.72559411]
[1764109878914,0.4637,2934.7,2934.3,6.81593564]
[1764109879278,0.258,2934.4,2934.3,4.13356193]
[1764109879472,0.4637,2934.7,2934.3,7.54152975]
[1764109879689,0.002,2934.7,2934.3,7.99982975]
[1764109880311,0.2252,2934.4,2934.3,4.13356193]
[1764109881698,0.4969,2934.7,2934.3,7.54152975]
[1764109882378,0.2252,2934.4,2934.3,4.13356193]
[1764109882704,0.4969,2934.7,2934.3,7.54152975]
[1764109882902,0.2252,2934.4,2934.1,3.40809668]
[1764109883115,0.2252,2934.2,2934.0,0.001]
[1764109883315,0.4949,2934.6,2934.0,0.001]
[1764109883508,0.2252,2934.1,2934.0,0.001]
[1764109884382,0.7174,2934.1,2934.0,0.001]
[1764109884583,0.002,2934.7,2934.0,0.9856]
[1764109884823,0.002,2934.7,2934.1,1.1792]
[1764109885210,0.002,2934.7,2934.2,10.22425191]
[1764109885725,0.002,2934.7,2934.2,10.71825191]
[1764109887136,0.002,2934.7,2934.2,10.22425191]
[1764109887331,0.002,2934.7,2934.4,6.81570338]
[1764109887533,0.002,2934.7,2934.6,0.4906]
[1764109889813,0.002,2934.7,2934.6,3.89821943]
[1764109897379,0.002,2934.7,2934.6,4.39221943]
[1764109898037,0.002,2934.7,2934.6,3.89821943]
[1764109898869,0.002,2935.0,2934.6,3.89821943]
[1764109898870,0.002,2935.0,2934.9,0.09436]
[1764109899072,0.002,2935.0,2934.9,5.85325935]
[1764109899239,0.002,2935.0,2934.9,9.26053046]
[1764109901753,0.002,2935.0,2934.9,9.16617046]
[1764109902085,0.4814,2935.0,2934.9,3.40727111]
[1764109902464,0.002,2935.0,2934.9,3.89787111]
[1764109902787,0.002,2935.0,2934.9,4.39187111]
[1764109903954,0.4814,2935.0,2934.9,3.40727111]
[1764109904286,0.2298,2935.0,2934.9,3.40727111]
[1764109904475,0.002,2935.0,2934.9,3.89787111]
[1764109905172,0.002,2935.0,2934.9,4.62346522]
[1764109905484,0.002,2935.0,2934.9,5.21182522]
[1764109906858,0.002,2935.0,2934.9,5.20764411]
[1764109909092,0.002,2935.0,2934.9,5.42464411]
[1764109910804,0.002,2935.0,2934.9,10.41621613]
[1764109912499,0.002,2935.0,2934.9,10.82172013]
[1764109912802,0.002,2935.0,2934.9,10.95819674]
[1764109912969,0.002,2935.0,2934.9,10.86383674]
[1764109913372,0.002,2935.0,2934.9,10.32185613]
[1764109915311,0.002,2935.0,2934.9,10.41621613]
[1764109917702,0.002,2935.0,2934.9,10.32185613]
[1764109919317,0.002,2935.0,2934.9,10.82172013]
[1764109919529,0.002,2935.0,2934.9,10.95819115]
[1764109921421,0.002,2935.0,2934.9,5.52601513]
[1764109922594,0.002,2935.0,2934.9,5.56008784]
[1764109923940,0.002,2935.0,2934.9,5.52601513]
[1764109924776,0.002,2935.0,2934.9,5.38954411]
[1764109927704,0.002,2935.0,2934.9,4.83728411]
[1764109927879,0.002,2935.0,2934.9,3.40409]
[1764109928199,0.002,2935.0,2934.9,4.12968411]
[1764109928403,0.002,2935.0,2934.9,4.70804411]
[1764109929575,0.2668,2935.0,2934.9,4.12968411]
[1764109930608,0.7224,2935.0,2934.9,4.12968411]
[1764109935110,0.002,2935.0,2934.9,5.38294411]
[1764109935332,0.0066,2935.0,2934.9,4.12968411]
[1764109935474,0.0066,2935.0,2934.9,7.80199401]
[1764109935671,0.4641,2935.0,2934.9,7.80199401]
[1764109935871,0.0066,2935.0,2934.9,7.80199401]
[1764109936705,0.0066,2935.0,2934.9,4.12968411]
[1764109936909,0.0066,2935.0,2934.9,7.80199401]
[1764109940607,0.002,2935.0,2934.9,8.74329401]
[1764109940784,0.002,2935.2,2934.9,12.15056512]
[1764109941104,0.002,2935.2,2935.1,0.74146]
[1764109941314,0.002,2935.2,2935.1,0.95746]
[1764109941519,0.002,2935.2,2935.1,1.43896]
[1764109941874,0.002,2935.5,2935.4,4.80340801]
[1764109942076,0.002,2935.5,2935.4,5.35756801]
[1764109942385,0.4894,2936.3,2935.4,9.24575875]
[1764109942591,0.0995,2936.9,2936.3,0.72559411]
[1764109942790,0.0995,2936.9,2936.8,3.6723099]
[1764109943111,0.5889,2936.9,2936.5,3.6723099]
[1764109943414,0.2265,2936.3,2936.0,0.94159411]
[1764109943722,0.2265,2936.1,2936.0,0.94159411]
[1764109943911,0.2265,2936.1,2935.7,0.72559411]
[1764109944236,0.4867,2936.8,2935.7,0.72559411]
[1764109944237,0.4242,2935.8,2935.7,0.72559411]
[1764109944391,0.4242,2935.8,2935.7,4.13193671]
[1764109944577,0.9109,2935.8,2935.7,4.13193671]
[1764109944779,0.9109,2935.8,2935.7,3.4063426]
[1764109945194,0.9109,2935.8,2935.7,4.13193671]
[1764109946593,0.9129,2935.8,2935.7,4.13193671]
[1764109948345,0.9129,2935.8,2935.7,3.4063426]
[1764109949513,0.9129,2935.8,2935.5,0.72559411]
[1764109949821,0.6864,2935.8,2935.5,0.72559411]
[1764109950023,0.2291,2935.6,2935.5,0.72559411]
[1764109950645,0.1997,2935.8,2935.5,0.72559411]
[1764109951539,0.1997,2935.8,2935.6,6.81291728]
[1764109951836,0.6891,2935.8,2935.6,6.81291728]
[1764109952007,0.2265,2935.7,2935.6,4.13205275]
[1764109952202,0.7132,2935.7,2935.6,4.13205275]
[1764109954035,0.2265,2935.7,2935.6,4.13205275]
[1764109955531,0.002,2935.8,2935.6,7.53851139]
[1764109955731,0.002,2935.8,2935.7,1.18539411]
[1764109955917,0.002,2935.8,2935.7,1.21945753]
[1764109957809,0.002,2935.8,2935.7,4.62580013]
[1764109958507,0.002,2935.8,2935.7,5.07323671]
[1764109958710,0.002,2935.8,2935.7,5.16759671]
[1764109959441,0.6699,2937.2,2935.8,0.405504]
[1764109959641,0.6699,2937.2,2936.6,0.09436]
[1764109959828,0.4894,2937.1,2936.7,6.81036536]
[1764109960208,0.1292,2936.8,2936.7,3.40518268]
[1764109960916,0.1805,2937.2,2936.7,11.40094215]
[1764109961238,0.4894,2937.1,2936.8,0.72559411]
[1764109961428,0.1977,2937.6,2936.8,0.72559411]
[1764109961632,0.31737441,2937.5,2936.8,0.72559411]
[1764109961964,0.31737441,2937.5,2936.9,6.80990158]
[1764109962170,0.4894,2937.4,2936.9,6.80990158]
[1764109962321,0.1122,2937.0,2936.9,4.1305449]
[1764109963218,0.5978,2937.0,2936.9,4.1305449]
[1764109964134,0.1122,2937.0,2936.9,3.40495079]
[1764109964552,0.1122,2937.0,2936.9,4.1305449]
[1764109968282,0.002,2937.1,2937.0,0.72559411]
[1764109968438,0.002,2937.1,2937.0,1.18539411]
[1764109968638,0.1142,2937.1,2937.0,4.39211668]
[1764109969175,0.1142,2937.1,2937.0,7.79695154]
[1764109969383,0.002,2937.1,2937.0,7.79695154]
[1764109969665,0.002,2937.1,2937.0,8.25675154]
[1764109969961,0.002,2937.1,2937.0,8.83261154]
[1764109970179,0.002,2937.1,2937.0,8.83961154]
[1764109970575,0.002,2937.1,2937.0,8.83930221]
[1764109972302,0.002,2937.1,2937.0,4.59852897]
[1764109972454,0.4967,2937.1,2937.0,4.13042897]
[1764109973282,0.002,2937.1,2937.0,4.59852897]
[1764109973653,0.002,2937.1,2937.0,4.13042897]
[1764109973857,0.124,2937.1,2937.0,4.13042897]
[1764109974993,0.124,2937.1,2937.0,0.72559411]
[1764109975185,0.5999,2937.1,2937.0,0.72559411]
[1764109977086,0.5999,2937.1,2937.0,4.13042897]
[1764109977495,0.5999,2937.1,2937.0,0.72559411]
[1764109977688,0.5999,2937.1,2937.0,4.13042897]
[1764109983310,0.124,2937.1,2937.0,4.13042897]
[1764109983675,0.34,2937.1,2937.0,4.13042897]
[1764109984275,0.8159,2937.1,2937.0,4.13042897]
[1764109986035,0.8159,2937.1,2935.8,0.001]
[1764109986036,3.40495079,2936.9,2935.8,0.001]
[1764109986310,0.13075956,2935.9,2935.8,0.72659411]
[1764109986680,0.78795956,2935.9,2935.8,0.72659411]
[1764109986883,0.78795956,2935.9,2935.8,0.001]
[1764109987207,1.51090388,2935.9,2935.8,0.001]
[1764109988207,4.91701444,2935.9,2935.8,0.001]
[1764109988410,4.59957412,2935.9,2935.8,0.001]
[1764109988978,4.91636677,2935.9,2935.8,0.001]
[1764109989511,4.59957412,2935.9,2935.8,0.001]
[1764109995011,0.4826,2935.9,2935.8,0.001]
[1764109995223,0.805,2935.9,2935.8,0.001]
[1764109997517,1.021,2935.9,2935.8,0.001]
[1764109998305,0.805,2935.9,2935.8,0.001]
[1764109998508,0.7733,2935.9,2935.8,0.001]
[1764109999034,1.021,2935.9,2935.8,0.001]
[1764109999328,1.021,2935.9,2935.3,6.80797358]
[1764110000297,1.021,2935.9,2935.3,7.28547358]
[1764110000509,0.7733,2935.9,2935.3,7.28547358]
[1764110001930,0.7733,2935.9,2935.8,0.001]
[1764110002135,0.7006,2935.9,2935.8,0.001]
[1764110004804,0.5628,2935.9,2935.8,0.001]
[1764110005136,1.0231,2935.9,2935.8,0.001]
[1764110005924,0.7788,2935.9,2935.8,0.001]
[1764110006838,1.0231,2935.9,2935.8,0.001]
[1764110015232,1.34046003,2935.9,2935.8,0.001]
[1764110016761,1.01796003,2935.9,2935.8,0.001]
[1764110018852,0.31936003,2935.9,2935.8,0.9415]
[1764110019020,0.53536003,2935.9,2935.8,0.9415]
[1764110019622,0.002,2935.9,2935.8,4.34772658]
[1764110019856,0.002,2935.9,2935.8,5.07332069]
[1764110020156,0.002,2935.9,2935.8,8.73953393]
[1764110025873,0.002,2935.9,2935.8,4.59582069]
[1764110031977,0.002,2935.9,2935.8,5.09332069]
[1764110035771,0.002,2935.9,2935.8,5.18768069]
[1764110036075,0.002,2935.9,2935.8,5.66248069]
[1764110037249,0.002,2935.9,2935.8,6.06798469]
[1764110040484,0.002,2935.9,2935.8,5.97362469]
[1764110040661,0.002,2935.9,2935.8,6.06798469]
[1764110041182,0.002,2935.9,2935.8,5.66248069]
[1764110041388,0.002,2935.9,2935.8,5.09332069]
[1764110042077,0.002,2936.2,2935.8,5.09332069]
[1764110042078,0.002,2936.2,2935.9,0.81995411]
[1764110042279,0.002,2936.2,2936.1,4.94340951]
[1764110042588,0.002,2936.2,2936.1,5.43200951]
[1764110043767,0.002,2936.2,2936.1,8.83788805]
[1764110044384,0.002,2936.2,2936.1,9.33228805]
[1764110046098,0.91442689,2939.3,2936.6,0.3416]
[1764110046266,0.91442689,2939.3,2938.6,0.72559411]
[1764110046267,0.4944,2939.3,2938.6,0.72559411]
[1764110046711,0.4944,2939.3,2938.5,0.15226]
[1764110046899,0.4944,2939.3,2938.6,0.4886]
[1764110047089,0.4944,2939.6,2938.6,1.51109314]
[1764110047288,0.4944,2939.6,2938.7,0.4886]
[1764110047673,0.4944,2939.7,2938.8,0.09436]
[1764110047875,0.4944,2939.7,2939.0,6.80503572]
[1764110048897,0.4094,2940.0,2939.1,1.39579411]
[1764110048898,0.1924,2940.0,2939.1,1.39579411]
[1764110049105,0.1924,2940.0,2939.2,0.58296]
[1764110049977,0.1924,2940.0,2939.3,6.80434116]
[1764110050377,0.1924,2940.0,2939.3,7.29294116]
[1764110052085,0.1924,2940.2,2939.4,0.4886]
[1764110052603,0.1924,2940.2,2939.4,0.983]
[1764110052987,0.6868,2940.2,2939.5,0.4886]
[1764110054107,0.6868,2940.2,2939.6,6.80364674]
[1764110054279,0.002,2940.0,2939.6,6.80364674]
[1764110054680,0.002,2940.0,2939.6,7.29224674]
[1764110055377,0.002,2940.0,2939.6,6.80364674]
[1764110055575,0.002,2940.0,2939.6,7.29224674]
[1764110056002,0.002,2940.0,2939.6,6.80364674]
[1764110056202,0.002,2940.0,2939.7,0.4886]
[1764110056408,0.002,2940.0,2939.9,0.4531]
[1764110057111,0.1179,2940.0,2939.4,0.4944]
[1764110057288,0.6528,2939.5,2938.7,0.4886]
[1764110057490,0.6528,2939.5,2939.0,0.216]